[Event "Titled Tuesday Blitz January 04 2022"]
[White "Svane, Rasmus"]
[Black "Riehle, Marco"]
[WhiteFideId "4657101"]
[BlackFideId "12904392"]
[WhiteElo "2645"]
[BlackElo "2462"]
[Result "1-0"]
[Round "04"]
[TimeControl "180+1"]
[Date "2022.01.04"]
[WhiteClock "0:00:16"]
[BlackClock "0:00:23"]

1. Nf3 {[%clk 0:03:00]}  c5 {[%clk 0:02:58]} 2. c4 {[%clk 0:03:00]}  Nf6 {[%clk 0:02:58]} 3. Nc3 {[%clk 0:03:00]}  d5 {[%clk 0:02:58]} 4. cxd5 {[%clk 0:03:01]}  Nxd5 {[%clk 0:02:59]} 5. e3 {[%clk 0:03:01]}  Nc6 {[%clk 0:02:59]} 6. Bb5 {[%clk 0:03:00]}  e6 {[%clk 0:02:58]} 7. b3 {[%clk 0:02:54]}  Be7 {[%clk 0:02:56]} 8. Bb2 {[%clk 0:02:41]}  O-O {[%clk 0:02:55]} 9. O-O {[%clk 0:02:41]}  a6 {[%clk 0:02:50]} 10. Bxc6 {[%clk 0:02:39]}  bxc6 {[%clk 0:02:51]} 11. Ne5 {[%clk 0:02:25]}  Bf6 {[%clk 0:02:43]} 12. Ne4 {[%clk 0:02:22]}  Qc7 {[%clk 0:02:21]} 13. Nxf6+ {[%clk 0:02:20]}  Nxf6 {[%clk 0:02:21]} 14. Rc1 {[%clk 0:02:19]}  Qd6 {[%clk 0:02:19]} 15. Qc2 {[%clk 0:02:18]}  a5 {[%clk 0:02:12]} 16. Rfd1 {[%clk 0:02:13]}  Nd7 {[%clk 0:02:11]} 17. Nxd7 {[%clk 0:02:03]}  Bxd7 {[%clk 0:02:12]} 18. Qxc5 {[%clk 0:02:03]}  Qxc5 {[%clk 0:02:13]} 19. Rxc5 {[%clk 0:02:04]}  Rfb8 {[%clk 0:02:09]} 20. Bc3 {[%clk 0:02:01]}  a4 {[%clk 0:02:01]} 21. b4 {[%clk 0:01:58]}  Rb5 {[%clk 0:01:59]} 22. a3 {[%clk 0:01:43]}  Rxc5 {[%clk 0:01:54]} 23. bxc5 {[%clk 0:01:44]}  Rb8 {[%clk 0:01:55]} 24. Bb4 {[%clk 0:01:44]}  Kf8 {[%clk 0:01:49]} 25. f4 {[%clk 0:01:44]}  Ke7 {[%clk 0:01:49]} 26. Kf2 {[%clk 0:01:42]}  Bc8 {[%clk 0:01:48]} 27. d3 {[%clk 0:01:40]}  Ba6 {[%clk 0:01:48]} 28. e4 {[%clk 0:01:41]}  Bb5 {[%clk 0:01:42]} 29. g4 {[%clk 0:01:40]}  g6 {[%clk 0:01:42]} 30. Ke3 {[%clk 0:01:36]}  Rd8 {[%clk 0:01:41]} 31. Ba5 {[%clk 0:01:34]}  Rd7 {[%clk 0:01:41]} 32. Be1 {[%clk 0:01:32]}  Rb7 {[%clk 0:01:39]} 33. h3 {[%clk 0:01:24]}  Ba6 {[%clk 0:01:39]} 34. Bb4 {[%clk 0:01:23]}  Rd7 {[%clk 0:01:37]} 35. Rd2 {[%clk 0:01:23]}  Rb7 {[%clk 0:01:37]} 36. g5 {[%clk 0:01:22]}  Rd7 {[%clk 0:01:37]} 37. h4 {[%clk 0:01:22]}  Rb7 {[%clk 0:01:35]} 38. Rd1 {[%clk 0:01:22]}  Rd7 {[%clk 0:01:35]} 39. d4 {[%clk 0:01:22]}  Bc4 {[%clk 0:01:31]} 40. Rh1 {[%clk 0:01:22]}  Rd8 {[%clk 0:01:23]} 41. h5 {[%clk 0:01:21]}  Rb8 {[%clk 0:01:21]} 42. Rh2 {[%clk 0:01:08]}  Bb3 {[%clk 0:01:16]} 43. Rh1 {[%clk 0:01:06]}  Bc4 {[%clk 0:01:15]} 44. Rc1 {[%clk 0:01:06]}  Bb3 {[%clk 0:01:14]} 45. Kd3 {[%clk 0:01:04]}  Rh8 {[%clk 0:01:09]} 46. Rh1 {[%clk 0:01:02]}  Rb8 {[%clk 0:01:07]} 47. Kc3 {[%clk 0:01:02]}  Ba2 {[%clk 0:01:05]} 48. Rf1 {[%clk 0:01:01]}  Rh8 {[%clk 0:01:03]} 49. Rf2 {[%clk 0:00:59]}  Bb3 {[%clk 0:01:03]} 50. Rf1 {[%clk 0:00:56]}  f5 {[%clk 0:00:54]} 51. gxf6+ {[%clk 0:00:54]}  Kxf6 {[%clk 0:00:55]} 52. h6 {[%clk 0:00:45]}  g5 {[%clk 0:00:51]} 53. f5 {[%clk 0:00:40]}  g4 {[%clk 0:00:47]} 54. Kd3 {[%clk 0:00:39]}  Rg8 {[%clk 0:00:43]} 55. Bc3 {[%clk 0:00:38]}  g3 {[%clk 0:00:38]} 56. d5+ {[%clk 0:00:38]}  e5 {[%clk 0:00:38]} 57. dxc6 {[%clk 0:00:33]}  Rc8 {[%clk 0:00:30]} 58. Rg1 {[%clk 0:00:29]}  Rxc6 {[%clk 0:00:27]} 59. Rxg3 {[%clk 0:00:26]}  Rxc5 {[%clk 0:00:27]} 60. Rg7 {[%clk 0:00:27]}  Bc4+ {[%clk 0:00:26]} 61. Kd2 {[%clk 0:00:25]}  Rc8 {[%clk 0:00:25]} 62. Rxh7 {[%clk 0:00:21]}  Rd8+ {[%clk 0:00:25]} 63. Ke1 {[%clk 0:00:22]}  Bd3 {[%clk 0:00:22]} 64. Bb4 {[%clk 0:00:18]}  Re8 {[%clk 0:00:22]} 65. Be7+ {[%clk 0:00:13]}  Rxe7 {[%clk 0:00:22]} 66. Rxe7 {[%clk 0:00:14]}  Kxe7 {[%clk 0:00:22]} 67. h7 {[%clk 0:00:14]}  Kd6 {[%clk 0:00:22]} 68. h8=Q {[%clk 0:00:15]}  Bc2 {[%clk 0:00:22]} 69. Qb8+ {[%clk 0:00:14]}  Kc5 {[%clk 0:00:23]} 70. Qb4+ {[%clk 0:00:15]}  Kc6 {[%clk 0:00:23]} 71. Kd2 {[%clk 0:00:16]} 1-0


[Site "https://www.chess.com"]

[Event "Titled Tuesday Blitz January 04 2022"]
[White "Terry, Renato"]
[Black "Weetik, Vjacheslav"]
[WhiteFideId "3803457"]
[BlackFideId "4153472"]
[WhiteElo "2577"]
[BlackElo "2469"]
[Result "1-0"]
[Round "04"]
[TimeControl "180+1"]
[Date "2022.01.04"]
[WhiteClock "0:00:04"]
[BlackClock "0:00:03"]

1. d4 {[%clk 0:03:00]}  Nf6 {[%clk 0:02:55]} 2. Bg5 {[%clk 0:03:01]}  d5 {[%clk 0:02:54]} 3. Bxf6 {[%clk 0:03:00]}  gxf6 {[%clk 0:02:54]} 4. e3 {[%clk 0:02:58]}  c5 {[%clk 0:02:51]} 5. c3 {[%clk 0:02:57]}  e5 {[%clk 0:02:46]} 6. Nf3 {[%clk 0:02:57]}  Nc6 {[%clk 0:02:41]} 7. Nbd2 {[%clk 0:02:54]}  cxd4 {[%clk 0:02:29]} 8. cxd4 {[%clk 0:02:52]}  Bh6 {[%clk 0:02:13]} 9. Be2 {[%clk 0:02:44]}  O-O {[%clk 0:02:02]} 10. O-O {[%clk 0:02:43]}  Be6 {[%clk 0:02:01]} 11. Nb3 {[%clk 0:02:36]}  Qe7 {[%clk 0:01:55]} 12. g3 {[%clk 0:02:26]}  Kh8 {[%clk 0:01:53]} 13. Nh4 {[%clk 0:02:19]}  Rg8 {[%clk 0:01:49]} 14. Rc1 {[%clk 0:02:15]}  f5 {[%clk 0:01:37]} 15. Ng2 {[%clk 0:02:11]}  f4 {[%clk 0:01:37]} 16. exf4 {[%clk 0:02:09]}  exf4 {[%clk 0:01:36]} 17. Rc3 {[%clk 0:02:06]}  Bh3 {[%clk 0:01:27]} 18. Bf3 {[%clk 0:02:02]}  Qf6 {[%clk 0:01:19]} 19. Bxd5 {[%clk 0:01:32]}  Rad8 {[%clk 0:01:18]} 20. Bxc6 {[%clk 0:01:33]}  bxc6 {[%clk 0:01:18]} 21. Qh5 {[%clk 0:01:33]}  Bf5 {[%clk 0:00:49]} 22. Rc5 {[%clk 0:01:26]}  Be4 {[%clk 0:00:45]} 23. Qe5 {[%clk 0:01:23]}  Qxe5 {[%clk 0:00:43]} 24. Rxe5 {[%clk 0:01:23]}  Bd5 {[%clk 0:00:42]} 25. Rh5 {[%clk 0:01:19]}  Rg6 {[%clk 0:00:28]} 26. Re1 {[%clk 0:01:06]}  Rb8 {[%clk 0:00:27]} 27. Re7 {[%clk 0:01:01]}  a5 {[%clk 0:00:24]} 28. Ra7 {[%clk 0:00:31]}  Re6 {[%clk 0:00:21]} 29. Re5 {[%clk 0:00:31]}  Rbe8 {[%clk 0:00:15]} 30. Nxf4 {[%clk 0:00:27]}  Rxe5 {[%clk 0:00:14]} 31. dxe5 {[%clk 0:00:27]}  Bf3 {[%clk 0:00:13]} 32. Nd4 {[%clk 0:00:23]}  Be4 {[%clk 0:00:09]} 33. Rxa5 {[%clk 0:00:22]}  Rd8 {[%clk 0:00:08]} 34. Nfe2 {[%clk 0:00:18]}  Bf8 {[%clk 0:00:05]} 35. f3 {[%clk 0:00:17]}  Bd5 {[%clk 0:00:05]} 36. Kf2 {[%clk 0:00:16]}  Bb4 {[%clk 0:00:05]} 37. Ra4 {[%clk 0:00:15]}  Bc5 {[%clk 0:00:05]} 38. Ke3 {[%clk 0:00:14]}  Re8 {[%clk 0:00:06]} 39. f4 {[%clk 0:00:14]}  f6 {[%clk 0:00:06]} 40. Ra5 {[%clk 0:00:11]}  Bb6 {[%clk 0:00:05]} 41. Ra6 {[%clk 0:00:12]}  Bc5 {[%clk 0:00:06]} 42. Kd3 {[%clk 0:00:08]}  fxe5 {[%clk 0:00:06]} 43. fxe5 {[%clk 0:00:08]}  Rxe5 {[%clk 0:00:07]} 44. Nc3 {[%clk 0:00:09]}  Bg2 {[%clk 0:00:05]} 45. Nxc6 {[%clk 0:00:08]}  Re6 {[%clk 0:00:03]} 46. Ra8+ {[%clk 0:00:03]}  Kg7 {[%clk 0:00:03]} 47. Rc8 {[%clk 0:00:03]}  Bxc6 {[%clk 0:00:02]} 48. Kc4 {[%clk 0:00:04]}  Bf2 {[%clk 0:00:02]} 49. Rc7+ {[%clk 0:00:04]}  Kg6 {[%clk 0:00:02]} 50. b4 {[%clk 0:00:05]}  Bg2 {[%clk 0:00:03]} 51. b5 {[%clk 0:00:05]}  Bf1+ {[%clk 0:00:04]} 52. Kb3 {[%clk 0:00:05]}  Bb6 {[%clk 0:00:04]} 53. Rc8 {[%clk 0:00:05]}  Bd4 {[%clk 0:00:04]} 54. a4 {[%clk 0:00:05]}  Re3 {[%clk 0:00:04]} 55. Kb4 {[%clk 0:00:05]}  Bg2 {[%clk 0:00:05]} 56. Rc4 {[%clk 0:00:05]}  Bf6 {[%clk 0:00:05]} 57. a5 {[%clk 0:00:04]}  Be7+ {[%clk 0:00:06]} 58. Ka4 {[%clk 0:00:04]}  Bf6 {[%clk 0:00:06]} 59. Kb4 {[%clk 0:00:04]}  Be7+ {[%clk 0:00:06]} 60. Ka4 {[%clk 0:00:05]}  Bf1 {[%clk 0:00:06]} 61. Rc6+ {[%clk 0:00:04]}  Bf6 {[%clk 0:00:06]} 62. Rxf6+ {[%clk 0:00:04]}  Kg7 {[%clk 0:00:03]} 63. Rc6 {[%clk 0:00:04]} 1-0


[Site "https://www.chess.com"]

[Event "Titled Tuesday Blitz January 04 2022"]
[White "Tsydypov, Zhamsaran"]
[Black "Tsaruk, Maksim"]
[WhiteFideId "4108566"]
[BlackFideId "13511173"]
[WhiteElo "2614"]
[BlackElo "2224"]
[Result "1-0"]
[Round "04"]
[TimeControl "180+1"]
[Date "2022.01.04"]
[WhiteClock "0:00:20"]
[BlackClock "0:00:04"]

1. e4 {[%clk 0:03:00]}  e5 {[%clk 0:02:59]} 2. Nf3 {[%clk 0:03:00]}  Nc6 {[%clk 0:02:58]} 3. Bb5 {[%clk 0:02:59]}  a6 {[%clk 0:02:57]} 4. Ba4 {[%clk 0:03:00]}  Nf6 {[%clk 0:02:58]} 5. O-O {[%clk 0:02:59]}  b5 {[%clk 0:02:58]} 6. Bb3 {[%clk 0:02:59]}  Bb7 {[%clk 0:02:59]} 7. Re1 {[%clk 0:02:59]}  Be7 {[%clk 0:02:58]} 8. c3 {[%clk 0:02:59]}  d5 {[%clk 0:02:58]} 9. exd5 {[%clk 0:02:53]}  Nxd5 {[%clk 0:02:58]} 10. Nxe5 {[%clk 0:02:54]}  Nxe5 {[%clk 0:02:59]} 11. Rxe5 {[%clk 0:02:54]}  c5 {[%clk 0:03:00]} 12. d4 {[%clk 0:02:50]}  c4 {[%clk 0:02:54]} 13. Bc2 {[%clk 0:02:49]}  O-O {[%clk 0:02:55]} 14. Qf3 {[%clk 0:02:42]}  Bd6 {[%clk 0:02:54]} 15. Re1 {[%clk 0:02:31]}  Nb4 {[%clk 0:02:17]} 16. Bxh7+ {[%clk 0:02:29]}  Kxh7 {[%clk 0:02:16]} 17. Qxb7 {[%clk 0:02:29]}  Nd3 {[%clk 0:02:01]} 18. Rf1 {[%clk 0:02:29]}  Qh4 {[%clk 0:01:06]} 19. g3 {[%clk 0:02:26]}  Qh5 {[%clk 0:01:06]} 20. Nd2 {[%clk 0:02:25]}  f5 {[%clk 0:01:01]} 21. b3 {[%clk 0:01:54]}  f4 {[%clk 0:00:54]} 22. bxc4 {[%clk 0:01:54]}  fxg3 {[%clk 0:00:48]} 23. hxg3 {[%clk 0:01:53]}  Nxf2 {[%clk 0:00:30]} 24. Rxf2 {[%clk 0:01:40]}  Rxf2 {[%clk 0:00:26]} 25. Qe4+ {[%clk 0:01:35]}  Rf5 {[%clk 0:00:07]} 26. Qh1 {[%clk 0:00:55]}  Bxg3 {[%clk 0:00:03]} 27. Qxh5+ {[%clk 0:00:54]}  Rxh5 {[%clk 0:00:04]} 28. c5 {[%clk 0:00:53]}  Bh2+ {[%clk 0:00:03]} 29. Kg2 {[%clk 0:00:53]}  Re8 {[%clk 0:00:01]} 30. Nf3 {[%clk 0:00:51]}  Re2+ {[%clk 0:00:02]} 31. Kf1 {[%clk 0:00:51]}  Rc2 {[%clk 0:00:03]} 32. Bd2 {[%clk 0:00:44]}  Bg3 {[%clk 0:00:02]} 33. Ke2 {[%clk 0:00:44]}  Bf4 {[%clk 0:00:02]} 34. Kd3 {[%clk 0:00:44]}  Rxd2+ {[%clk 0:00:01]} 35. Nxd2 {[%clk 0:00:44]}  Rh3+ {[%clk 0:00:02]} 36. Kc2 {[%clk 0:00:43]}  Rh2 {[%clk 0:00:02]} 37. Rd1 {[%clk 0:00:42]}  g5 {[%clk 0:00:03]} 38. d5 {[%clk 0:00:41]}  g4 {[%clk 0:00:03]} 39. d6 {[%clk 0:00:42]}  g3 {[%clk 0:00:02]} 40. d7 {[%clk 0:00:42]}  Bg5 {[%clk 0:00:02]} 41. Kd3 {[%clk 0:00:41]}  g2 {[%clk 0:00:01]} 42. Nf3 {[%clk 0:00:41]}  Rh3 {[%clk 0:00:01]} 43. Ke4 {[%clk 0:00:42]}  Bd8 {[%clk 0:00:01]} 44. c6 {[%clk 0:00:30]}  Rh1 {[%clk 0:00:01]} 45. Rg1 {[%clk 0:00:29]}  Rxg1 {[%clk 0:00:01]} 46. Nxg1 {[%clk 0:00:29]}  Bb6 {[%clk 0:00:02]} 47. Kd5 {[%clk 0:00:28]}  Kg6 {[%clk 0:00:02]} 48. Kd6 {[%clk 0:00:17]}  Bxg1 {[%clk 0:00:01]} 49. d8=Q {[%clk 0:00:17]}  Bh2+ {[%clk 0:00:02]} 50. Kd7 {[%clk 0:00:18]}  g1=Q {[%clk 0:00:03]} 51. Qg8+ {[%clk 0:00:18]}  Kf5 {[%clk 0:00:03]} 52. Qxg1 {[%clk 0:00:19]}  Bxg1 {[%clk 0:00:04]} 53. c7 {[%clk 0:00:20]} 1-0


[Site "https://www.chess.com"]

[Event "Titled Tuesday Blitz January 04 2022"]
[White "Vakhlamov, Igor L."]
[Black "Piorun, Kacper"]
[WhiteFideId "24126748"]
[BlackFideId "1130420"]
[WhiteElo "2401"]
[BlackElo "2571"]
[Result "1-0"]
[Round "04"]
[TimeControl "180+1"]
[Date "2022.01.04"]
[WhiteClock "0:00:05"]
[BlackClock "0:00:09"]

1. e4 {[%clk 0:03:00]}  e6 {[%clk 0:03:00]} 2. d4 {[%clk 0:03:00]}  d5 {[%clk 0:03:01]} 3. Nc3 {[%clk 0:03:01]}  Bb4 {[%clk 0:03:00]} 4. exd5 {[%clk 0:03:01]}  exd5 {[%clk 0:03:01]} 5. Bd3 {[%clk 0:03:01]}  Nc6 {[%clk 0:03:01]} 6. Nf3 {[%clk 0:03:01]}  Nge7 {[%clk 0:03:01]} 7. O-O {[%clk 0:03:00]}  Bf5 {[%clk 0:03:01]} 8. a3 {[%clk 0:02:58]}  Bxc3 {[%clk 0:03:01]} 9. bxc3 {[%clk 0:02:57]}  O-O {[%clk 0:03:00]} 10. a4 {[%clk 0:02:56]}  Re8 {[%clk 0:02:56]} 11. h4 {[%clk 0:02:52]}  Bxd3 {[%clk 0:02:54]} 12. Qxd3 {[%clk 0:02:49]}  Qd7 {[%clk 0:02:54]} 13. Ba3 {[%clk 0:02:38]}  Ng6 {[%clk 0:02:49]} 14. g3 {[%clk 0:02:32]}  Qg4 {[%clk 0:02:42]} 15. Nh2 {[%clk 0:01:55]}  Qh3 {[%clk 0:02:28]} 16. Qf3 {[%clk 0:01:49]}  Re4 {[%clk 0:02:27]} 17. Rab1 {[%clk 0:01:25]}  b6 {[%clk 0:02:24]} 18. Rb5 {[%clk 0:01:23]}  Qe6 {[%clk 0:01:58]} 19. h5 {[%clk 0:01:10]}  Nge7 {[%clk 0:01:41]} 20. Rd1 {[%clk 0:00:58]}  Nf5 {[%clk 0:01:36]} 21. Nf1 {[%clk 0:00:56]}  a6 {[%clk 0:01:30]} 22. Rbb1 {[%clk 0:00:56]}  Re8 {[%clk 0:01:26]} 23. Bc1 {[%clk 0:00:56]}  Na5 {[%clk 0:00:59]} 24. Bf4 {[%clk 0:00:55]}  Qd7 {[%clk 0:00:55]} 25. Bxc7 {[%clk 0:00:43]}  Nh4 {[%clk 0:00:55]} 26. gxh4 {[%clk 0:00:42]}  Qxc7 {[%clk 0:00:55]} 27. Ng3 {[%clk 0:00:36]}  Rxh4 {[%clk 0:00:43]} 28. Qxd5 {[%clk 0:00:36]}  Rg4 {[%clk 0:00:43]} 29. Qf3 {[%clk 0:00:33]}  Rf4 {[%clk 0:00:41]} 30. Qd3 {[%clk 0:00:32]}  Nc4 {[%clk 0:00:38]} 31. Re1 {[%clk 0:00:32]}  Rf8 {[%clk 0:00:35]} 32. Re2 {[%clk 0:00:29]}  g6 {[%clk 0:00:34]} 33. Rbe1 {[%clk 0:00:28]}  b5 {[%clk 0:00:34]} 34. axb5 {[%clk 0:00:28]}  axb5 {[%clk 0:00:34]} 35. d5 {[%clk 0:00:26]}  Qd6 {[%clk 0:00:25]} 36. Re7 {[%clk 0:00:22]}  Rg4 {[%clk 0:00:18]} 37. Kf1 {[%clk 0:00:12]}  Rd8 {[%clk 0:00:11]} 38. h6 {[%clk 0:00:11]}  Rf8 {[%clk 0:00:09]} 39. Ne4 {[%clk 0:00:08]}  Qh2 {[%clk 0:00:09]} 40. Nf6+ {[%clk 0:00:07]}  Kh8 {[%clk 0:00:09]} 41. Nxg4 {[%clk 0:00:08]}  Qh1+ {[%clk 0:00:08]} 42. Ke2 {[%clk 0:00:08]}  Qh4 {[%clk 0:00:09]} 43. Qd4+ {[%clk 0:00:08]}  f6 {[%clk 0:00:09]} 44. Nxf6 {[%clk 0:00:05]} 1-0


[Site "https://www.chess.com"]

[Event "Titled Tuesday Blitz January 04 2022"]
[White "Yaran, Siar"]
[Black "Migot, Tangi"]
[WhiteFideId "6323006"]
[BlackFideId "662445"]
[WhiteElo "1977"]
[BlackElo "2515"]
[Result "0-1"]
[Round "04"]
[TimeControl "180+1"]
[Date "2022.01.04"]
[WhiteClock "0:00:02"]
[BlackClock "0:00:14"]

1. e4 {[%clk 0:03:00]}  c5 {[%clk 0:02:59]} 2. Nf3 {[%clk 0:03:00]}  e6 {[%clk 0:03:00]} 3. d4 {[%clk 0:03:01]}  cxd4 {[%clk 0:03:01]} 4. Nxd4 {[%clk 0:03:02]}  Nc6 {[%clk 0:03:01]} 5. Nc3 {[%clk 0:03:01]}  Qc7 {[%clk 0:03:01]} 6. a3 {[%clk 0:03:01]}  a6 {[%clk 0:03:00]} 7. Be2 {[%clk 0:02:57]}  Nf6 {[%clk 0:03:00]} 8. f4 {[%clk 0:02:51]}  Nxd4 {[%clk 0:02:58]} 9. Qxd4 {[%clk 0:02:50]}  Bc5 {[%clk 0:02:59]} 10. Qd3 {[%clk 0:02:50]}  b5 {[%clk 0:02:58]} 11. e5 {[%clk 0:02:42]}  Ng8 {[%clk 0:02:54]} 12. Bf3 {[%clk 0:02:00]}  Bb7 {[%clk 0:02:49]} 13. Bxb7 {[%clk 0:01:41]}  Qxb7 {[%clk 0:02:50]} 14. Ne4 {[%clk 0:01:41]}  Be7 {[%clk 0:02:50]} 15. Be3 {[%clk 0:01:31]}  Rc8 {[%clk 0:02:47]} 16. O-O-O {[%clk 0:01:21]}  Nh6 {[%clk 0:02:42]} 17. h3 {[%clk 0:01:10]}  Rc4 {[%clk 0:02:24]} 18. Nd2 {[%clk 0:01:03]}  Rc8 {[%clk 0:02:19]} 19. g4 {[%clk 0:01:02]}  b4 {[%clk 0:01:58]} 20. a4 {[%clk 0:01:01]}  b3 {[%clk 0:01:53]} 21. Qxb3 {[%clk 0:00:46]}  Qc6 {[%clk 0:01:48]} 22. Kb1 {[%clk 0:00:40]}  f5 {[%clk 0:01:46]} 23. Rhg1 {[%clk 0:00:37]}  O-O {[%clk 0:01:37]} 24. g5 {[%clk 0:00:36]}  Nf7 {[%clk 0:01:36]} 25. g6 {[%clk 0:00:37]}  hxg6 {[%clk 0:01:37]} 26. Rxg6 {[%clk 0:00:37]}  Nh8 {[%clk 0:01:24]} 27. Rg3 {[%clk 0:00:32]}  Rb8 {[%clk 0:01:23]} 28. Qc4 {[%clk 0:00:29]}  Qb7 {[%clk 0:01:17]} 29. Nb3 {[%clk 0:00:16]}  Rfc8 {[%clk 0:01:16]} 30. Qd3 {[%clk 0:00:16]}  Qb4 {[%clk 0:01:07]} 31. Qxd7 {[%clk 0:00:15]}  Kf7 {[%clk 0:00:52]} 32. Rdg1 {[%clk 0:00:07]}  g6 {[%clk 0:00:52]} 33. Bd2 {[%clk 0:00:04]}  Qb6 {[%clk 0:00:38]} 34. Bc3 {[%clk 0:00:03]}  Rc4 {[%clk 0:00:31]} 35. a5 {[%clk 0:00:04]}  Qf2 {[%clk 0:00:27]} 36. Rxg6 {[%clk 0:00:03]}  Nxg6 {[%clk 0:00:24]} 37. Rxg6 {[%clk 0:00:04]}  Qf1+ {[%clk 0:00:22]} 38. Ka2 {[%clk 0:00:04]}  Kxg6 {[%clk 0:00:18]} 39. Qxe6+ {[%clk 0:00:05]}  Kh5 {[%clk 0:00:18]} 40. Qxf5+ {[%clk 0:00:05]}  Kh6 {[%clk 0:00:17]} 41. Qe6+ {[%clk 0:00:05]}  Kh5 {[%clk 0:00:17]} 42. Qxe7 {[%clk 0:00:06]}  Ra4+ {[%clk 0:00:16]} 43. Qa3 {[%clk 0:00:04]}  Rxa3+ {[%clk 0:00:16]} 44. Kxa3 {[%clk 0:00:05]}  Qb5 {[%clk 0:00:15]} 45. Nd4 {[%clk 0:00:04]}  Qc5+ {[%clk 0:00:14]} 46. Ka2 {[%clk 0:00:04]}  Qc4+ {[%clk 0:00:14]} 47. Kb1 {[%clk 0:00:03]}  Rd8 {[%clk 0:00:14]} 48. Nb3 {[%clk 0:00:02]}  Rd1+ {[%clk 0:00:14]} 49. Nc1 {[%clk 0:00:02]}  Qf1 {[%clk 0:00:14]} 0-1


[Site "https://www.chess.com"]

[Event "Titled Tuesday Blitz January 04 2022"]
[White "Yilmaz, Mustafa"]
[Black "Maly, Alexey"]
[WhiteFideId "6302718"]
[BlackFideId "14103184"]
[WhiteElo "2568"]
[BlackElo "2266"]
[Result "0-1"]
[Round "04"]
[TimeControl "180+1"]
[Date "2022.01.04"]
[WhiteClock "0:00:05"]
[BlackClock "0:00:59"]

1. d4 {[%clk 0:03:00]}  d5 {[%clk 0:03:00]} 2. c4 {[%clk 0:02:51]}  dxc4 {[%clk 0:03:00]} 3. Nf3 {[%clk 0:02:51]}  Nf6 {[%clk 0:03:01]} 4. e3 {[%clk 0:02:51]}  e6 {[%clk 0:03:01]} 5. Bxc4 {[%clk 0:02:52]}  a6 {[%clk 0:03:02]} 6. O-O {[%clk 0:02:52]}  b5 {[%clk 0:03:02]} 7. Bd3 {[%clk 0:02:45]}  Bb7 {[%clk 0:03:03]} 8. a4 {[%clk 0:02:45]}  b4 {[%clk 0:03:03]} 9. Nbd2 {[%clk 0:02:45]}  Nbd7 {[%clk 0:03:03]} 10. e4 {[%clk 0:02:39]}  Be7 {[%clk 0:03:01]} 11. Qe2 {[%clk 0:02:38]}  c5 {[%clk 0:03:01]} 12. e5 {[%clk 0:02:37]}  Nd5 {[%clk 0:03:01]} 13. Ne4 {[%clk 0:02:35]}  cxd4 {[%clk 0:03:01]} 14. Bg5 {[%clk 0:02:33]}  O-O {[%clk 0:03:02]} 15. Nd6 {[%clk 0:02:22]}  Bxg5 {[%clk 0:02:47]} 16. Nxb7 {[%clk 0:02:21]}  Qe7 {[%clk 0:02:46]} 17. Qe4 {[%clk 0:01:53]}  g6 {[%clk 0:02:38]} 18. Qxd4 {[%clk 0:01:53]}  Nxe5 {[%clk 0:02:21]} 19. Nxe5 {[%clk 0:01:12]}  Qxb7 {[%clk 0:02:21]} 20. Be4 {[%clk 0:01:12]}  Rfd8 {[%clk 0:02:18]} 21. Rad1 {[%clk 0:01:10]}  Bf6 {[%clk 0:02:18]} 22. f4 {[%clk 0:01:07]}  Rac8 {[%clk 0:02:18]} 23. Qf2 {[%clk 0:01:03]}  Bg7 {[%clk 0:02:16]} 24. h4 {[%clk 0:01:02]}  h5 {[%clk 0:02:13]} 25. Rfe1 {[%clk 0:00:57]}  Qc7 {[%clk 0:02:09]} 26. Bd3 {[%clk 0:00:47]}  a5 {[%clk 0:02:06]} 27. Ba6 {[%clk 0:00:47]}  Ra8 {[%clk 0:02:01]} 28. Bb5 {[%clk 0:00:47]}  Qd6 {[%clk 0:01:48]} 29. g3 {[%clk 0:00:39]}  Bxe5 {[%clk 0:01:44]} 30. fxe5 {[%clk 0:00:34]}  Qe7 {[%clk 0:01:43]} 31. Kh2 {[%clk 0:00:34]}  Rac8 {[%clk 0:01:41]} 32. Rc1 {[%clk 0:00:32]}  Qb7 {[%clk 0:01:32]} 33. Qe2 {[%clk 0:00:29]}  Rxc1 {[%clk 0:01:30]} 34. Rxc1 {[%clk 0:00:30]}  Qa7 {[%clk 0:01:18]} 35. Rc6 {[%clk 0:00:25]}  Qd4 {[%clk 0:01:13]} 36. Rc4 {[%clk 0:00:19]}  Qb6 {[%clk 0:01:13]} 37. Rc6 {[%clk 0:00:19]}  Qa7 {[%clk 0:01:06]} 38. Rd6 {[%clk 0:00:17]}  Rc8 {[%clk 0:01:05]} 39. Bc4 {[%clk 0:00:16]}  Rxc4 {[%clk 0:01:02]} 40. Qxc4 {[%clk 0:00:16]}  Qf2+ {[%clk 0:01:02]} 41. Kh3 {[%clk 0:00:10]}  Ne3 {[%clk 0:01:02]} 42. Rd8+ {[%clk 0:00:04]}  Kg7 {[%clk 0:01:01]} 43. Qe4 {[%clk 0:00:02]}  Qf1+ {[%clk 0:01:00]} 44. Kh2 {[%clk 0:00:03]}  Ng4+ {[%clk 0:01:01]} 45. Qxg4 {[%clk 0:00:04]}  hxg4 {[%clk 0:01:01]} 46. b3 {[%clk 0:00:04]}  Qf2+ {[%clk 0:01:01]} 47. Kh1 {[%clk 0:00:04]}  Qxg3 {[%clk 0:01:01]} 48. h5 {[%clk 0:00:05]}  Qxe5 {[%clk 0:00:58]} 49. hxg6 {[%clk 0:00:05]}  Kxg6 {[%clk 0:00:59]} 50. Rg8+ {[%clk 0:00:05]}  Kf5 {[%clk 0:00:59]} 51. Rh8 {[%clk 0:00:05]}  Qxh8+ {[%clk 0:00:59]} 0-1


[Site "https://www.chess.com"]